[Event "WWRR IM-Group 2024"]
[Site "Wachtebeke"]
[Date "2024.02.14"]
[Round "7.1"]
[White "Van Cappellen, Jonas"]
[Black "Leenhouts, Koen"]
[Result "1/2-1/2"]
[ECO "C03"]
[WhiteElo "2212"]
[BlackElo "2433"]
[Annotator "TA"]
[PlyCount "72"]
[EventDate "2024.02.12"]
[EventType "tourn"]
[EventCountry "BEL"]
[SourceTitle "playchess.com"]
[Source "ChessBase"]
[SourceQuality "1"]
[TimeControl "40/5400+30:900+30"]

{[%evp 9,72,12,12,20,25,20,16,19,22,35,22,21,53,43,60,67,61,62,70,61,89,59,65,18,32,16,25,31,31,52,43,30,35,30,31,19,37,33,22,0,0,0,0,-9,-3,-6,0,0,0,0,0,0,0,0,0,0,0,0,0,0,0,0,0,0,0]} 1. e4 {[%emt 0:00:03]} e6 {[%emt 0:03:03]} 2. d4 {[%emt 0:00:08]} d5 {[%emt 0:00:03]} 3. Nd2 {[%emt 0:00:11]} h6 {[%emt 0:00:05]} 4. Ngf3 {[%emt 0:00:09]} Nf6 {[%emt 0:00:20]} 5. e5 {[%emt 0:00:07]} Nfd7 {[%emt 0:00:06]} 6. Bd3 {[%emt 0:00:08]} c5 {[%emt 0:00:07]} 7. c3 {[%emt 0:00:07]} Nc6 {[%emt 0:00:05]} 8. O-O {[%emt 0:00:10]} g5 {[%emt 0:00:05]} 9. b3 {[%emt 0:01:14]} Qb6 {[%emt 0:02:13]} 10. Bb2 {[%emt 0:00:14]} g4 {[%emt 0:04:29]} 11. Ne1 {[%emt 0:00:12]} cxd4 {[%emt 0:05:21]} 12. cxd4 {[%emt 0:00:10]} Nxd4 {[%emt 0:00:42]} 13. Qxg4 {[%emt 0:00:49]} Nc6 {[%emt 0:00:27]} 14. Ndf3 {[%emt 0:15:06] White is more active.} h5 {[%emt 0:06:15]} 15. Qf4 {[%emt 0:06:42] [#] Strongly threatening Ng5.} Qb4 {[%emt 0:01:24]} 16. Qxb4 {[%emt 0:01:09]} (16. Nd4 $14 {might be stronger.}) 16... Nxb4 $11 {[%emt 0:01:47]} 17. Nd4 {[%emt 0:06:35]} a6 {[%emt 0:06:22]} 18. Be2 {[%emt 0:08:51]} Nc5 {[%emt 0:03:11]} 19. a3 {[%emt 0:16:19]} Nc6 {[%emt 0:00:09]} 20. Nef3 {[%emt 0:00:59]} Bd7 {[%emt 0:03:31]} 21. Rac1 {[%emt 0:01:01]} Ne4 {[%emt 0:03:40]} 22. Rfd1 {[%emt 0:02:02]} Bh6 {[%emt 0:05:25]} 23. Rc2 {[%emt 0:01:21]} O-O {[%emt 0:02:05]} 24. h4 {[%emt 0:03:10] The position is equal.} Rfc8 {[%emt 0:02:26]} 25. Nxc6 {[%emt 0:01:06]} Rxc6 {[%emt 0:02:19]} 26. Rxc6 {[%emt 0:00:12]} bxc6 {[%emt 0:00:36]} 27. b4 {[%emt 0:09:37]} a5 {[%emt 0:00:55]} 28. Ne1 {[%emt 0:02:18]} axb4 {[%emt 0:02:06]} 29. axb4 {[%emt 0:00:06]} Rb8 {[%emt 0:00:25]} (29... Ra2 $5 30. Nd3 $8 Bc8 31. Bxh5 Ba6 $11) 30. Nd3 {[%emt 0:01:42][%cal Ob2d4]} Bf8 {[%emt 0:12:19]} 31. Bd4 {[%emt 0:02:06]} Bxb4 {[%emt 0:03:17]} 32. Rb1 {[%emt 0:00:16][%cal Od3c5] [#] aiming for Nc5!} (32. Nxb4 Rxb4 33. Bf3 c5 34. Bxe4 cxd4 $17 (34... Rxd4 35. Rxd4 cxd4 36. Bd3 $11)) 32... Bd6 {[%emt 0:00:08]} 33. Rxb8+ {[%emt 0:00:05]} Bxb8 {[%emt 0:00:09]} 34. Bxh5 {[%emt 0:00:11]} c5 {[%emt 0:00:41]} 35. Nxc5 {[%emt 0:01:54]} (35. Bxc5 $2 {too greedy.} Bb5 36. Bd4 Bxd3 $19) 35... Nxc5 {[%emt 0:00:08]} 36. Bxc5 {[%emt 0:00:04] Hoping for f4.} Bxe5 {[%emt 0:00:08] Weighted Error Value: White=0.06 (flawless) /Black=0.05 (flawless) .  Mistake:       	White=1     	---        Inaccurate:     	White=2     	Black=2      OK:         	White=13    	Black=12     Best:        	White=3     	Black=2} 1/2-1/2

[Event "WWRR IM-Group 2024"]
[Site "Wachtebeke"]
[Date "2024.02.14"]
[Round "7.2"]
[White "De Waele, Warre"]
[Black "Milliet, Sophie"]
[Result "1/2-1/2"]
[ECO "D30"]
[WhiteElo "2345"]
[BlackElo "2384"]
[Annotator "TA"]
[PlyCount "30"]
[EventDate "2024.02.12"]
[EventType "tourn"]
[EventCountry "BEL"]
[SourceTitle "playchess.com"]
[Source "ChessBase"]
[SourceQuality "1"]
[TimeControl "40/5400+30:900+30"]

{[%evp 9,30,9,14,0,3,-6,0,-6,-7,-5,0,0,0,0,0,0,0,0,0,0,20,18,16]} 1. d4 {[%emt 0:00:03]} Nf6 {[%emt 0:00:08]} 2. Nf3 {[%emt 0:00:11]} d5 {[%emt 0:00:14]} 3. e3 {[%emt 0:00:28]} a6 {[%emt 0:01:46]} 4. c4 {[%emt 0:03:35]} e6 {[%emt 0:00:08]} 5. Nbd2 {[%emt 0:01:22]} c5 {[%emt 0:05:12] The position is equal.} 6. dxc5 {[%emt 0:03:50]} Bxc5 {[%emt 0:00:07]} 7. Bd3 {[%emt 0:05:51]} dxc4 {[%emt 0:06:17]} 8. Bxc4 {[%emt 0:00:12]} O-O {[%emt 0:01:24]} 9. O-O {[%emt 0:01:52]} Nc6 {[%emt 0:01:09]} 10. b3 {[%emt 0:10:22]} b5 {[%emt 0:02:44]} 11. Be2 {[%emt 0:00:07]} Bb7 {[%emt 0:00:06]} 12. Bb2 {[%emt 0:01:57]} Be7 {[%emt 0:15:03]} 13. a3 {[%emt 0:03:59]} Rc8 {[%emt 0:00:52]} 14. b4 {[%emt 0:00:33]} a5 {[%emt 0:16:26]} 15. bxa5 {[%emt 0:03:48]} Qxa5 {[%emt 0:00:15] Not much happened in this game.   Weighted Error Value: White=0.03 (flawless) /Black=0.03 (flawless) .  OK:         	White=3     	Black=3} 1/2-1/2

[Event "WWRR IM-Group 2024"]
[Site "Wachtebeke"]
[Date "2024.02.14"]
[Round "7.3"]
[White "Matnadze Bujiashvili, Ann"]
[Black "Gloeckler, Christian"]
[Result "1/2-1/2"]
[ECO "D23"]
[WhiteElo "2364"]
[BlackElo "2354"]
[Annotator "TA"]
[PlyCount "144"]
[EventDate "2024.02.12"]
[EventType "tourn"]
[EventCountry "BEL"]
[SourceTitle "playchess.com"]
[Source "ChessBase"]
[SourceQuality "1"]
[TimeControl "40/5400+30:900+30"]

{[%evp 58,144,0,0,0,0,0,0,0,0,0,0,0,0,0,0,0,0,0,0,391,457,472,475,474,475,475,475,466,447,412,413,478,414,468,445,438,439,499,472,551,554,554,547,538,143,140,139,125,0,131,0,347,0,0,0,0,0,0,0,0,0,0,0,0,0,0,0,0,0,4,0,19,0,0,0,0,0,0,0,0,0,0,0,0,0,0,0,0]} 1. d4 {[%emt 0:00:03]} Nf6 {[%emt 0:00:08]} 2. Nf3 {[%emt 0:00:11]} d5 {[%emt 0:00:06]} 3. g3 {[%emt 0:00:05]} c5 {[%emt 0:00:08]} 4. c4 {[%emt 0:00:09]} dxc4 {[%emt 0:00:20]} 5. Bg2 {[%emt 0:00:18]} Nc6 {[%emt 0:00:21]} 6. Qa4 {[%emt 0:00:56]} cxd4 {[%emt 0:00:51]} 7. Nxd4 {[%emt 0:00:23]} Qxd4 {[%emt 0:01:07]} 8. Bxc6+ {[%emt 0:00:06]} Bd7 {[%emt 0:00:25]} 9. Bxd7+ {[%emt 0:03:42]} Qxd7 {[%emt 0:01:03]} 10. Qxc4 {[%emt 0:00:53]} Rc8 {[%emt 0:01:59]} 11. Qf4 {[%emt 0:00:08]} g6 {[%emt 0:06:36]} 12. O-O {[%emt 0:03:46]} Bg7 {[%emt 0:05:08]} 13. Nc3 {[%emt 0:01:17]} O-O {[%emt 0:01:36]} 14. Qf3 {[%emt 0:01:04]} Qc6 {[%emt 0:14:30]} 15. Be3 {[%emt 0:02:26]} Qxf3 {[%emt 0:03:09]} 16. exf3 {[%emt 0:00:02]} a6 {[%emt 0:05:57]} 17. Rfd1 {[%emt 0:02:55]} Rfd8 {[%emt 0:02:48]} 18. a4 {[%emt 0:05:22]} Kf8 {[%emt 0:06:53]} 19. Kf1 {[%emt 0:07:32]} Ke8 {[%emt 0:07:45]} 20. Ke2 {[%emt 0:02:41]} Rxd1 {[%emt 0:02:41]} 21. Rxd1 {[%emt 0:00:18]} Nd7 {[%emt 0:00:12]} 22. Bd4 {[%emt 0:01:40]} Bxd4 {[%emt 0:01:30]} 23. Rxd4 {[%emt 0:00:01]} e6 {[%emt 0:01:02]} 24. Rh4 {[%emt 0:05:26]} h5 {[%emt 0:01:58]} 25. Rb4 {[%emt 0:00:06]} b6 {[%emt 0:00:44]} 26. h4 {[%emt 0:02:32]} Rc6 {[%emt 0:01:35]} 27. f4 {[%emt 0:08:19]} Ke7 {[%emt 0:01:14]} 28. Rd4 {[%emt 0:00:40]} Nf6 {[%emt 0:02:33]} 29. Kd3 {[%emt 0:05:40]} Ng4 {[%emt 0:02:49]} 30. Ke2 {[%emt 0:00:59]} Nh6 {[%emt 0:01:24]} 31. Rd3 {[%emt 0:05:04]} Nf5 {[%emt 0:00:54]} 32. Kd2 {[%emt 0:00:24]} Nd6 {[%emt 0:00:36]} 33. b3 {[%emt 0:01:08]} b5 {[%emt 0:02:42]} 34. axb5 {[%emt 0:00:40]} axb5 {[%emt 0:00:08]} 35. Rd4 {[%emt 0:00:28]} Ra6 {[%emt 0:00:47]} 36. Kc2 {[%emt 0:02:03]} Ra1 {[%emt 0:03:33]} 37. Kb2 {[%emt 0:01:35]} Ra5 {[%emt 0:02:02]} 38. Kb1 {[%emt 0:11:57]} Ra7 $2 {[%emt 0:01:04][%mdl 8192] [#]} (38... Ra8 $11 {and Black stays safe.}) 39. Rxd6 $1 $18 {[%emt 0:00:28]} b4 {[%emt 0:00:54]} 40. Ne4 {[%emt 0:02:35]} f5 {[%emt 0:00:15]} 41. Rd4 {[%emt 0:15:23]} fxe4 {[%emt 0:15:11]} 42. Rxb4 {[%emt 0:00:13]} (42. Rxe4 Rd7 43. Kc2 (43. Rxb4 Rd2 $18) 43... Rc7+ 44. Rc4 Ra7 $16) 42... Rd7 {[%emt 0:00:52]} 43. Kc2 {[%emt 0:00:29]} (43. Rxe4 Rd2 44. Re5 (44. f3 Rd3 $11) 44... Rxf2 $18) 43... Ra7 {[%emt 0:01:04]} 44. Kd2 {[%emt 0:04:49]} (44. Rxe4 Ra2+ 45. Kc3 Rxf2) 44... Ra2+ {[%emt 0:02:10]} 45. Ke3 {[%emt 0:00:03]} Rb2 {[%emt 0:00:15]} 46. Rb7+ {[%emt 0:00:47]} ({Inferior is} 46. Rxe4 Rxb3+ 47. Ke2 Ra3 $11) (46. Kxe4 Rxf2 47. Rd4 Re2+ 48. Kf3 Rc2 $16) 46... Kf6 {[%emt 0:00:55]} 47. b4 {[%emt 0:00:31]} (47. Kxe4 Rxf2 48. Rc7 Re2+ 49. Kd4 Rd2+ 50. Kc5 Rg2 $16) 47... e5 {[%emt 0:01:21]} 48. fxe5+ {[%emt 0:06:55]} (48. Kxe4 exf4 49. Rb6+ (49. Kxf4 Rxf2+ 50. Ke3 Rc2 $14) 49... Kg7 $16) 48... Kxe5 {[%emt 0:00:00]} 49. Rb5+ {[%emt 0:00:04]} Kf6 {[%emt 0:00:00]} 50. Kxe4 {[%emt 0:03:12]} Rxf2 {[%emt 0:00:00]} 51. Rb6+ $2 {[%emt 0:00:02]} (51. Kd4 $18 {has better winning chances.}) 51... Kg7 $16 {[%emt 0:00:00]} 52. Rb7+ {[%emt 0:00:21]} Kf6 {[%emt 0:00:00]} 53. Rb6+ {[%emt 0:05:39]} Kg7 $1 {[%emt 0:00:00]} 54. b5 {[%emt 0:04:18]} (54. Rc6 $16 Rb2 55. Rc4) 54... Rb2 $2 {[%emt 0:00:00][%mdl 8192]} (54... Rg2 $11) 55. Rb8 $2 {[%emt 0:00:22]} (55. Rb7+ $18 Kf6 56. Rb6+ Ke7 57. Rxg6 Rb4+ 58. Kf3 Rb3+ 59. Kf4 Rxb5 60. Rg5 Rb4+ 61. Kf3) 55... Rb3 $11 {[%emt 0:00:00]} 56. Kf4 {[%emt 0:01:22]} Rb4+ {[%emt 0:00:00]} 57. Ke5 {[%emt 0:00:29]} Rb3 {[%emt 0:00:00]} 58. Rb7+ {[%emt 0:00:07]} Kh6 {[%emt 0:00:00]} 59. Kf4 {[%emt 0:02:21]} Rb4+ {[%emt 0:00:00]} 60. Kf3 {[%emt 0:00:11]} Rb3+ {[%emt 0:00:00]} 61. Kg2 {[%emt 0:00:18]} Rb2+ $1 {[%emt 0:00:00]} 62. Kf3 {[%emt 0:00:38]} Rb3+ $1 {[%emt 0:00:00]} 63. Kf4 {[%emt 0:00:05]} Rb4+ {[%emt 0:00:00]} 64. Ke5 {[%emt 0:00:03]} Rb3 {[%emt 0:00:00]} 65. b6 {[%emt 0:00:10]} Rxg3 {[%emt 0:00:00]} 66. Rc7 {[%emt 0:01:05]} Rb3 {[%emt 0:00:00]} 67. b7 {[%emt 0:01:21]} g5 {[%emt 0:01:09]} 68. hxg5+ {[%emt 0:00:11]} Kxg5 {[%emt 0:02:35]} 69. Kd6 {[%emt 0:00:06]} h4 {[%emt 0:02:25]} 70. Rc5+ {[%emt 0:00:08]} Kg4 {[%emt 0:00:41]} 71. Rc4+ {[%emt 0:00:04]} Kg5 {[%emt 0:00:36]} 72. Kc7 {[%emt 0:01:19]} h3 {[%emt 0:00:51]} 1/2-1/2

[Event "WWRR IM-Group 2024"]
[Site "Wachtebeke"]
[Date "2024.02.14"]
[Round "7.4"]
[White "Dobrikov, Marco"]
[Black "Hauchamps, Maxime"]
[Result "1-0"]
[ECO "D45"]
[WhiteElo "2260"]
[BlackElo "2267"]
[Annotator "TA"]
[PlyCount "53"]
[EventDate "2024.02.12"]
[EventType "tourn"]
[EventCountry "BEL"]
[SourceTitle "playchess.com"]
[Source "ChessBase"]
[SourceQuality "1"]
[TimeControl "40/5400+30:900+30"]

{[%evp 13,53,9,13,18,10,11,16,17,32,20,30,36,24,14,19,21,35,32,91,61,51,54,64,34,34,35,95,35,37,36,123,123,545,539,500,500,594,514,513,510,489,503]} 1. d4 {[%emt 0:00:04]} d5 {[%emt 0:00:03]} 2. c4 {[%emt 0:00:04]} c6 {[%emt 0:00:10]} 3. Nf3 {[%emt 0:00:51]} Nf6 {[%emt 0:00:06]} 4. Nc3 {[%emt 0:00:30]} e6 {[%emt 0:00:06]} 5. e3 {[%emt 0:00:09]} Nbd7 {[%emt 0:00:06]} 6. Be2 {[%emt 0:00:05]} dxc4 {[%emt 0:00:29]} 7. a4 {[%emt 0:00:05]} Bd6 {[%emt 0:00:41]} 8. Nd2 {[%emt 0:00:05]} O-O {[%emt 0:01:38]} 9. Nxc4 {[%emt 0:00:04]} Bc7 {[%emt 0:01:42]} 10. b3 {[%emt 0:00:04] The position is equal.} Nd5 {[%emt 0:05:16]} 11. Qd2 {[%emt 0:08:58]} Re8 {[%emt 0:06:11]} 12. O-O {[%emt 0:04:59][%cal Bh1f1,Bf1d1,Bd1d6][%mdl 32]} Nxc3 {[%emt 0:04:15]} 13. Qxc3 {[%emt 0:00:09]} e5 {[%emt 0:00:11]} 14. dxe5 {[%emt 0:01:10]} Nxe5 {[%emt 0:00:57]} 15. Bb2 {[%emt 0:00:10] [#] Threatens to win with f4.} f6 {[%emt 0:03:08]} (15... Qf6 $14) 16. Rfd1 {[%emt 0:00:59]} Qe7 {[%emt 0:01:25]} 17. Ba3 {[%emt 0:00:37]} Qf7 {[%emt 0:01:02]} 18. Nd6 {[%emt 0:01:49]} Bxd6 {[%emt 0:00:13]} 19. Rxd6 {[%emt 0:00:36] Hoping for f4.} Kh8 {[%emt 0:01:54]} (19... Qg6 $1 $14) 20. Rad1 {[%emt 0:02:58] White is more active.} (20. f4 $16 Ng4 21. e4) 20... Be6 {[%emt 0:01:02]} 21. f4 {[%emt 0:01:26]} Ng4 {[%emt 0:06:33] [#]} (21... Nd7 $14) 22. e4 $1 $36 {[%emt 0:06:58][%mdl 2048] White is in control.} f5 $2 {[%emt 0:07:14][%mdl 8192] This move loses the game for Black.} (22... Qg8 $16 {is more resistant.} 23. a5 Nh6) 23. Bxg4 $18 {[%emt 0:02:41] White is clearly winning.} fxg4 {[%emt 0:00:12] Black is weak on the dark squares} 24. f5 {[%emt 0:00:13]} Bc8 {[%emt 0:03:22]} 25. Rd8 {[%emt 0:01:15] White threatens Rxe8+ and mate.} Bxf5 {[%emt 0:05:24]} 26. Rxa8 {[%emt 0:00:20]} Rxa8 {[%emt 0:00:12]} 27. Rf1 {[%emt 0:00:44] Weighted Error Value: White=0.12 (very precise) /Black=0.58.  Loses game:     	---       	Black=1      Mistake:       	White=1     	Black=3      Inaccurate:     	White=2     	---        OK:         	White=7     	Black=7      Best:        	White=1     	Black=1      Strong:       	White=1     	---} 1-0

[Event "WWRR IM-Group 2024"]
[Site "Wachtebeke"]
[Date "2024.02.14"]
[Round "7.5"]
[White "Victor, Julian"]
[Black "Ochs, Daniel Elias"]
[Result "1-0"]
[ECO "D02"]
[WhiteElo "2216"]
[BlackElo "2280"]
[Annotator "RC"]
[PlyCount "59"]
[EventDate "2024.02.12"]
[EventType "tourn"]
[EventCountry "BEL"]
[SourceTitle "playchess.com"]
[Source "ChessBase"]
[SourceQuality "1"]
[TimeControl "40/5400+30:900+30"]

1. d4 {[%emt 0:00:03]} e6 {[%emt 0:01:08]} 2. Bf4 {[%emt 0:00:05]} d5 {[%emt 0:00:06]} 3. e3 {[%emt 0:00:12]} Nf6 {[%emt 0:00:13]} 4. Nf3 {[%emt 0:00:13]} Bd6 {[%emt 0:01:08]} 5. Nbd2 {[%emt 0:00:06]} O-O {[%emt 0:01:23]} 6. Bd3 {[%emt 0:00:07]} c5 {[%emt 0:05:49]} 7. dxc5 {[%emt 0:00:20]} Bxc5 {[%emt 0:00:52]} 8. O-O {[%emt 0:00:24]} Nc6 {[%emt 0:02:00]} 9. c4 {[%emt 0:00:19]} Qe7 {[%emt 0:03:28]} 10. cxd5 {[%emt 0:11:14]} exd5 {[%emt 0:04:31]} 11. h3 {[%emt 0:11:35]} h6 {[%emt 0:03:14]} 12. Nb3 {[%emt 0:01:43]} Bb6 {[%emt 0:02:23]} 13. Nbd4 {[%emt 0:01:36]} Ne4 {[%emt 0:07:07]} 14. Rc1 {[%emt 0:02:53]} Nxd4 {[%emt 0:09:11]} 15. Nxd4 {[%emt 0:00:39]} Bxd4 {[%emt 0:06:40]} 16. exd4 {[%emt 0:00:09]} Qb4 {[%emt 0:01:08]} 17. Bc2 {[%emt 0:31:26]} Qb6 {[%emt 0:24:31]} 18. Re1 {[%emt 0:04:54]} Bf5 {[%emt 0:01:30]} 19. Bb3 {[%emt 0:00:34]} Be6 {[%emt 0:01:03]} 20. Bc7 {[%emt 0:02:05]} Qb4 {[%emt 0:03:40]} 21. Be5 {[%emt 0:04:39]} Qd2 {[%emt 0:08:23]} 22. Rc2 {[%emt 0:03:19]} Qg5 {[%emt 0:00:31]} 23. Qc1 {[%emt 0:00:55]} Qg6 {[%emt 0:02:20]} 24. Qe3 {[%emt 0:01:18]} Rac8 {[%emt 0:02:58]} 25. Rec1 {[%emt 0:00:19]} Rxc2 {[%emt 0:00:24]} 26. Rxc2 {[%emt 0:00:17]} Nf6 {[%emt 0:06:42]} 27. Rc7 {[%emt 0:04:23]} Qb1+ {[%emt 0:00:19]} 28. Qc1 {[%emt 0:03:15]} Qxc1+ {[%emt 0:01:12]} 29. Rxc1 {[%emt 0:00:02]} Nd7 {[%emt 0:00:23]} 30. Bf4 {[%emt 0:03:39]} 1-0

[Event "WWRR IM-Group 2024"]
[Site "Wachtebeke"]
[Date "2024.02.14"]
[Round "8.1"]
[White "Leenhouts, Koen"]
[Black "Ochs, Daniel Elias"]
[Result "1/2-1/2"]
[ECO "C03"]
[WhiteElo "2433"]
[BlackElo "2280"]
[Annotator "TA"]
[PlyCount "72"]
[EventDate "2024.02.12"]
[EventType "tourn"]
[EventCountry "BEL"]
[SourceTitle "playchess.com"]
[Source "ChessBase"]
[SourceQuality "1"]
[TimeControl "40/5400+30:900+30"]

{[%evp 9,72,18,35,13,9,18,21,23,24,40,46,36,51,52,73,65,66,82,79,65,68,75,75,26,26,20,31,27,41,40,30,31,38,37,29,23,33,27,31,0,0,0,-2,-7,-5,-8,-9,-6,0,-1,0,0,0,0,0,0,0,0,0,0,0,0,0,0,0]} 1. e4 {[%emt 0:00:03]} e6 {[%emt 0:03:03]} 2. d4 {[%emt 0:00:08]} d5 {[%emt 0:00:03]} 3. Nd2 {[%emt 0:00:11]} h6 {[%emt 0:00:05]} 4. Ngf3 {[%emt 0:00:09]} Nf6 {[%emt 0:00:20]} 5. e5 {[%emt 0:00:07]} Nfd7 {[%emt 0:00:06]} 6. Bd3 {[%emt 0:00:08]} c5 {[%emt 0:00:07]} 7. c3 {[%emt 0:00:07]} Nc6 {[%emt 0:00:05]} 8. O-O {[%emt 0:00:10]} g5 {[%emt 0:00:05]} 9. b3 {[%emt 0:01:14]} Qb6 {[%emt 0:02:13]} 10. Bb2 {[%emt 0:00:14]} g4 {[%emt 0:04:29]} 11. Ne1 {[%emt 0:00:12]} cxd4 {[%emt 0:05:21]} 12. cxd4 {[%emt 0:00:10]} Nxd4 {[%emt 0:00:42]} 13. Qxg4 {[%emt 0:00:49]} Nc6 {[%emt 0:00:27]} 14. Ndf3 {[%emt 0:15:06] White is more active.} h5 {[%emt 0:06:15]} 15. Qf4 {[%emt 0:06:42]} Qb4 {[%emt 0:01:24]} 16. Qxb4 {[%emt 0:01:09]} (16. Qe3 $16) 16... Nxb4 $11 {[%emt 0:01:47]} 17. Nd4 {[%emt 0:06:35]} a6 {[%emt 0:06:22]} 18. Be2 {[%emt 0:08:51]} Nc5 {[%emt 0:03:11]} 19. a3 {[%emt 0:16:19]} Nc6 {[%emt 0:00:09] [#] White must now prevent ...Nxd4.} 20. Nef3 {[%emt 0:00:59]} Bd7 {[%emt 0:03:31]} 21. Rac1 {[%emt 0:01:01]} Ne4 {[%emt 0:03:40]} 22. Rfd1 {[%emt 0:02:02]} Bh6 {[%emt 0:05:25]} 23. Rc2 {[%emt 0:01:21]} O-O {[%emt 0:02:05]} 24. h4 {[%emt 0:03:10]} Rfc8 {[%emt 0:02:26] The position is equal.} 25. Nxc6 {[%emt 0:01:06]} Rxc6 {[%emt 0:02:19]} 26. Rxc6 {[%emt 0:00:12]} bxc6 {[%emt 0:00:36]} 27. b4 {[%emt 0:09:37]} a5 {[%emt 0:00:55] next ...axb4 is good for Black.} 28. Ne1 {[%emt 0:02:18]} axb4 {[%emt 0:02:06]} 29. axb4 {[%emt 0:00:06][%cal Oe1d3]} Rb8 {[%emt 0:00:25]} (29... Ra2 $5 30. Nd3 $8 c5 31. bxc5 Bb5 $11) 30. Nd3 $1 {[%emt 0:01:42][%cal Ob2d4]} Bf8 {[%emt 0:12:19]} 31. Bd4 {[%emt 0:02:06]} Bxb4 {[%emt 0:03:17]} 32. Rb1 {[%emt 0:00:16][%cal Od3c5] [#] Hoping for Nc5!} (32. Nxb4 Rxb4 33. Bf3 c5 34. Bxe4 cxd4 $17 (34... Rxd4 35. Rxd4 cxd4 36. Bd3 $11)) 32... Bd6 {[%emt 0:00:08]} 33. Rxb8+ {[%emt 0:00:05]} Bxb8 {[%emt 0:00:09]} 34. Bxh5 {[%emt 0:00:11]} c5 {[%emt 0:00:41]} 35. Nxc5 {[%emt 0:01:54]} (35. Bxc5 $2 {perishes.} Bb5 36. Bd4 Bxd3 $19) 35... Nxc5 {[%emt 0:00:08]} 36. Bxc5 {[%emt 0:00:04] f4 would now be deadly.} Bxe5 {[%emt 0:00:08] Weighted Error Value: White=0.05 (flawless) /Black=0.04 (flawless) .  Mistake:       	White=1     	---        Inaccurate:     	White=1     	---        OK:         	White=14    	Black=11     Best:        	White=2     	Black=2      Strong:       	White=1     	---} 1/2-1/2